bitfinex/quotes_SOLUSD_20250108
["timestamp","ask_amount","ask_price","bid_price","bid_amount"]
[1736329597738,2.18,197.45,197.38,153.45542041]
[1736329597946,22.18,197.45,197.34,153.43542041]
[1736329598139,23.24212277,197.45,197.34,153.43542041]
[1736329598355,20.0,197.41,197.34,153.43542041]
[1736329601048,20.0,197.42,197.34,153.43542041]
[1736329601854,23.47826576,197.44,197.34,153.43542041]
[1736329602647,20.0,197.42,197.34,153.43542041]
[1736329603126,2.18,197.41,197.34,153.43542041]
[1736329603330,22.18,197.41,197.34,153.43542041]
[1736329611161,20.0,197.37,197.29,153.38252041]
[1736329615741,2.18,197.36,197.29,153.38252041]
[1736329622555,22.18,197.36,197.29,16.98252041]
[1736329622751,22.18,197.36,197.29,15.42242041]
[1736329623263,20.0,197.33,197.29,15.42242041]
[1736329626848,23.18575279,197.35,197.29,15.42242041]
[1736329627976,3.18575279,197.35,197.29,15.42242041]
[1736329628167,2.18,197.34,197.29,15.42242041]
[1736329628872,2.18,197.33,197.31,1.6127]
[1736329629051,5.23380199,197.4,197.31,1.6127]
[1736329629052,2.18,197.32,197.31,153.43512041]
[1736329629455,20.0,197.37,197.31,153.43512041]
[1736329629683,2.18,197.36,197.31,153.43512041]
[1736329632175,23.18575279,197.4,197.31,153.43512041]
[1736329632354,2.18,197.35,197.31,153.43512041]
[1736329633681,2.18,197.35,197.31,17.03512041]
[1736329635157,2.18,197.35,197.31,15.42242041]
[1736329636974,2.18,197.35,197.28,15.42242041]
[1736329642173,2.18,197.34,197.28,151.82242041]
[1736329655098,20.0,197.37,197.29,6.5827]
[1736329655397,2.18,197.36,197.29,158.40512041]
[1736329655596,2.18,197.36,197.3,0.76008418]
[1736329655803,20.0,197.37,197.3,0.76008418]
[1736329655804,2.18,197.35,197.3,0.76008418]
[1736329656184,2.18,197.34,197.29,158.40512041]
[1736329658117,2.18,197.34,197.29,15.42242041]
[1736329659015,23.776884,197.33,197.29,15.42242041]
[1736329659197,20.0,197.3,197.26,16.96832041]
[1736329659392,20.0,197.27,197.26,1.5459]
[1736329659697,22.18,197.27,197.26,1.5459]
[1736329661313,20.0,197.26,197.24,15.42242041]
[1736329662293,20.0,197.26,197.22,16.93432041]
[1736329662916,20.0,197.23,197.22,15.42242041]
[1736329663781,20.0,197.22,197.18,15.42242041]
[1736329666731,20.0,197.26,197.18,151.82242041]
[1736329666886,2.18,197.25,197.19,0.76049298]
[1736329667220,2.18,197.25,197.18,151.82242041]
[1736329668523,2.18,197.25,197.19,0.76045833]
[1736329669309,2.18,197.25,197.18,151.82242041]
[1736329671096,2.18,197.25,197.19,0.76044262]
[1736329672205,18.17329693,197.34,197.2,8.2286]
[1736329672413,2.18,197.32,197.2,8.2286]
[1736329672615,23.776884,197.31,197.21,0.76036995]
[1736329672995,23.776884,197.31,197.21,16.18279036]
[1736329673206,2.18,197.3,197.21,16.18279036]
[1736329673601,22.18,197.3,197.21,16.18279036]
[1736329674198,2.18,197.29,197.21,16.18279036]
[1736329678321,2.18,197.29,197.22,1.6445]
[1736329678533,2.18,197.29,197.23,152.58268304]
[1736329678722,2.18,197.29,197.23,151.82242041]
[1736329679918,2.18,197.29,197.24,0.76025164]
[1736329681205,2.18,197.29,197.23,151.82242041]
[1736329686923,23.776884,197.34,197.24,152.58267435]
[1736329687123,26.98703175,197.36,197.25,6.3143]
[1736329687340,2.18,197.35,197.27,1.6631]
[1736329687541,2.18,197.35,197.28,152.58252808]
[1736329687751,20.0,197.33,197.28,151.82242041]
[1736329694441,23.776884,197.32,197.28,151.82242041]
[1736329694650,20.0,197.29,197.28,15.42242041]
[1736329702836,2.18,197.29,197.28,15.42242041]
[1736329710375,20.0,197.33,197.28,15.42242041]
[1736329710586,2.18,197.29,197.28,15.42242041]
[1736329717062,20.0,197.26,197.22,15.42242041]
[1736329725478,20.0,197.25,197.18,15.42242041]
[1736329726570,43.776884,197.25,197.13,153.44592041]
[1736329726776,20.0,197.21,197.13,153.44592041]
[1736329727076,2.18,197.2,197.13,153.44592041]
[1736329730175,2.18,197.2,197.14,0.76064474]
[1736329730372,2.96931717,197.26,197.14,152.58306515]
[1736329730556,2.18,197.25,197.14,151.82242041]
[1736329730756,2.18,197.25,197.15,0.76054675]
[1736329735606,22.18,197.25,197.15,152.58296716]
[1736329735781,22.18,197.25,197.15,151.82242041]
[1736329735957,2.18,197.24,197.16,0.76053286]
[1736329737968,2.18,197.24,197.17,160.02582041]
[1736329738278,20.0,197.25,197.18,152.58285649]
[1736329738453,2.18,197.23,197.18,151.82242041]
[1736329738658,2.18,197.22,197.18,151.82242041]
[1736329739666,2.18,197.22,197.19,0.76035785]
[1736329744584,2.18,197.22,197.19,152.58277826]
[1736329744783,2.18,197.22,197.19,151.82242041]
[1736329750477,2.18,197.22,197.19,15.42242041]
[1736329754290,2.18,197.22,197.19,16.18293047]
[1736329754590,2.18,197.22,197.19,15.42242041]
[1736329756394,2.18,197.22,197.19,151.82242041]
[1736329759297,2.18,197.22,197.19,15.42242041]
[1736329760880,20.0,197.18,197.14,15.42242041]
[1736329762077,2.18,197.22,197.14,151.82242041]
[1736329769308,20.0,197.18,197.14,15.42242041]
[1736329770421,2.18,197.17,197.14,15.42242041]
[1736329770922,1.06212277,197.25,197.14,15.42242041]
[1736329771089,2.18,197.24,197.14,15.42242041]
[1736329771289,20.0,197.2,197.14,15.42242041]
[1736329773608,2.18,197.19,197.14,15.42242041]
[1736329783010,2.18,197.18,197.14,15.42242041]
[1736329783411,20.0,197.2,197.14,15.42242041]
[1736329783612,2.18,197.19,197.14,15.42242041]
[1736329795014,20.0,197.15,197.11,1.5597]
[1736329795226,20.0,197.15,197.07,22.95992041]
[1736329795913,20.0,197.15,197.07,159.35992041]
[1736329798116,2.18,197.14,197.08,152.58333453]
[1736329798316,2.18,197.14,197.08,151.82242041]
[1736329801229,2.18,197.13,197.08,151.82242041]
[1736329802342,2.18,197.13,197.09,0.76080806]
[1736329803643,2.18,197.13,197.09,152.58322847]
[1736329803940,2.18,197.12,197.09,151.82242041]
[1736329804118,2.18,197.11,197.1,152.58315445]
[1736329804319,2.18,197.11,197.1,151.82242041]
[1736329806344,20.0,197.19,197.1,151.82242041]
[1736329806520,2.18,197.18,197.1,151.82242041]
[1736329813937,2.18,197.18,197.11,0.76081319]
[1736329814144,2.18,197.18,197.12,1.5215]
[1736329816045,2.18,197.17,197.12,1.5215]
[1736329816844,2.18,197.16,197.13,6.1343]
[1736329817824,2.18,197.16,197.13,6.89495353]
[1736329818031,20.0,197.24,197.13,6.89495353]
[1736329818336,2.18,197.23,197.13,6.89495353]
[1736329820257,2.18,197.23,197.13,6.1343]
[1736329820559,20.0,197.19,197.12,1.5215]
[1736329821054,23.776884,197.18,197.08,6.4773]
[1736329821263,20.0,197.15,197.08,6.4773]
[1736329821436,2.18,197.14,197.08,6.4773]
[1736329823763,2.18,197.14,197.07,1.5603]
[1736329827734,20.0,197.1,197.07,1.5603]
[1736329827934,20.0,197.1,197.03,6.6635]
[1736329833153,20.0,197.1,196.97,6.2075]
[1736329833154,20.0,197.06,196.97,6.2075]
[1736329833456,2.18,197.05,196.97,7.7322]
[1736329833848,2.18,197.05,196.98,0.7612742]
[1736329835456,2.18,197.05,196.97,8.49337814]
[1736329837247,2.18,197.05,196.97,160.31579855]
[1736329837449,2.18,197.05,196.97,159.55462041]
[1736329838857,2.18,197.05,196.98,0.76121689]
[1736329843257,2.18,197.05,196.98,137.16121689]
[1736329843463,2.18,197.05,196.98,136.4]
[1736329843867,2.18,197.05,196.99,0.76125535]
[1736329846968,2.18,197.04,197.0,153.36582041]
[1736329847161,20.0,197.13,197.03,20.0]
[1736329847367,22.18,197.12,197.03,20.0]
[1736329852065,23.776884,197.11,197.03,20.0]
[1736329853070,22.18,197.12,197.04,6.4818]
[1736329856888,20.0,197.06,196.95,17.01542041]
[1736329857266,20.55656721,197.06,196.95,17.01542041]
[1736329857568,20.55656721,197.06,196.88,137.993]
[1736329857569,20.0,196.98,196.88,137.993]
[1736329857768,20.0,196.98,196.87,23.31444135]
[1736329857769,43.776884,196.97,196.84,151.82242041]
[1736329857973,2.18,196.96,196.85,0.76177811]
[1736329859174,2.18,196.96,196.85,152.58419852]
[1736329859389,0.55656721,196.99,196.85,151.82242041]
[1736329859680,2.18,196.98,196.87,1.5881]
[1736329860075,2.18,196.98,196.88,0.76161643]
[1736329860719,2.18,196.98,196.89,6.1772]
[1736329860902,2.18,196.98,196.9,0.76152801]
[1736329862972,2.18,196.98,196.89,142.5772]
[1736329863476,2.18,196.98,196.89,6.1772]
[1736329863800,20.0,196.94,196.89,6.1772]
[1736329864903,20.0,196.92,196.89,6.1772]
[1736329865197,2.2,196.91,196.89,6.1772]
[1736329867008,20.0,196.94,196.89,6.1772]
[1736329867187,2.2,196.9,196.89,6.1772]
[1736329870583,2.2,196.9,196.84,0.7617531]
[1736329871718,2.2,196.9,196.84,137.1617531]
[1736329872024,2.2,196.89,196.84,136.4]
[1736329872225,2.2,196.89,196.85,0.7616421]
[1736329872429,0.55656721,196.98,196.85,0.7616421]
[1736329872430,20.0,196.96,196.85,137.1616421]
[1736329872726,2.2,196.95,196.85,136.4]
[1736329872905,2.2,196.95,196.86,0.76165226]
[1736329876192,2.2,196.95,196.86,137.16165226]
[1736329876414,2.2,196.95,196.86,136.4]
[1736329877221,2.2,196.95,196.87,0.76165599]
[1736329877594,2.2,196.94,196.89,6.6126]
[1736329877792,0.55656721,197.02,196.89,143.77414871]
[1736329878088,2.2,197.01,196.89,143.0126]
[1736329878701,20.0,197.0,196.89,143.0126]
[1736329879826,20.0,197.0,196.9,0.76154322]
[1736329880901,23.776884,196.99,196.89,6.6126]
[1736329881304,20.0,196.96,196.89,6.6126]
[1736329881707,20.0,196.96,196.88,1.5624]
[1736329881900,43.776884,196.97,196.88,1.5624]
[1736329883225,0.55656721,196.99,196.88,1.5624]
[1736329883826,20.0,196.96,196.88,1.5624]
[1736329886296,0.55656721,196.99,196.88,1.5624]
[1736329886494,2.2,196.98,196.88,138.72408964]
[1736329886719,2.2,196.98,196.88,137.9624]
[1736329886923,2.2,196.98,196.89,0.76156073]
[1736329891228,2.2,196.98,196.89,137.16156073]
[1736329891527,2.2,196.98,196.89,136.4]
[1736329891728,2.2,196.98,196.9,0.76153659]
[1736329892722,2.2,196.98,196.89,136.4]
[1736329898837,2.2,196.98,196.9,0.76154641]
[1736329899039,2.2,196.98,196.91,6.0262]
[1736329899825,20.0,197.03,196.91,142.4262]
[1736329900015,2.2,197.02,196.92,1.5211]
[1736329900217,20.0,197.01,196.92,1.5211]
[1736329900617,2.2,197.0,196.92,1.5211]
[1736329909329,2.75656721,197.0,196.92,1.5211]
[1736329910051,20.0,196.96,196.92,1.5211]
[1736329910536,20.0,196.96,196.86,8.1423]
[1736329912056,2.75656721,197.0,196.86,145.30401646]
[1736329912356,2.75656721,197.0,196.86,144.5423]
[1736329912652,2.75656721,197.0,196.87,0.76161822]
[1736329915150,2.75656721,197.0,196.87,137.16161822]
[1736329915358,2.75656721,197.0,196.87,136.4]
[1736329916848,22.75656721,197.0,196.87,136.4]
[1736329917258,22.18,196.99,196.87,136.4]
[1736329917442,20.0,196.98,196.87,136.4]
[1736329919675,20.0,196.98,196.88,1.6148]
[1736329920953,2.18,196.99,196.88,138.77641025]
[1736329921262,2.18,196.99,196.89,6.4028]
[1736329921438,2.18,196.99,196.89,7.16434137]
[1736329923365,0.55656721,197.0,196.89,7.16434137]
[1736329923547,2.18,196.98,196.89,7.16434137]
[1736329924148,2.18,196.98,196.89,143.56434137]
[1736329924442,2.18,196.98,196.89,142.8028]
[1736329926462,2.18,196.97,196.91,1.5343]
[1736329927967,20.0,197.01,196.91,1.5343]
[1736329927968,2.18,196.96,196.91,1.5343]
[1736329937496,2.18,196.96,196.89,6.4028]
[1736329937996,2.01837225,196.97,196.89,6.4028]
[1736329938183,2.18,196.96,196.89,6.4028]
[1736329944076,20.0,196.95,196.89,6.4028]
[1736329944275,2.18,196.94,196.89,6.4028]
[1736329948104,2.18,196.93,196.89,6.4028]
[1736329948911,2.18,196.92,196.89,6.4028]
[1736329953313,20.0,196.95,196.89,6.4028]
[1736329953614,2.18,196.94,196.89,6.4028]
[1736329960618,20.0,196.95,196.89,6.4028]
[1736329960835,2.18,196.94,196.89,6.4028]
[1736329965943,2.18,196.94,196.87,1.5164]
[1736329966242,0.84946919,196.93,196.87,1.5164]
[1736329967245,20.0,196.89,196.78,1.5319]
[1736329972246,20.0,196.85,196.78,1.5319]
[1736329972444,2.2,196.84,196.78,1.5319]
[1736329978650,2.18,196.83,196.78,1.5319]
[1736329979752,2.18,196.83,196.74,20.0]
[1736329980151,20.0,196.81,196.74,20.0]
[1736329981862,2.2,196.8,196.74,20.0]
[1736329982265,20.0,196.76,196.74,20.0]
[1736329982672,2.2,196.8,196.74,20.0]
[1736329986058,20.0,196.76,196.74,20.0]
[1736329987378,24.62635319,196.79,196.74,20.0]
[1736329987576,23.776884,196.75,196.74,20.0]
[1736329987978,24.62635319,196.75,196.74,20.0]
[1736329988363,24.62635319,196.75,196.74,17.07815192]
[1736329988981,24.62635319,196.75,196.74,6.13815192]
[1736329991485,20.0,196.72,196.66,1.5774]
[1736329991663,20.0,196.68,196.66,1.5774]
[1736329991865,20.0,196.69,196.66,1.5774]
[1736329992869,20.0,196.69,196.61,1.523]
[1736329994189,2.2,196.68,196.61,1.523]
[1736329995187,2.2,196.67,196.61,1.523]
[1736329995491,2.2,196.66,196.61,1.523]
[1736330000485,2.2,196.65,196.61,1.523]
[1736330002426,2.22,196.64,196.61,1.523]
[1736330002718,2.22,196.63,196.61,1.523]
[1736330002906,2.22,196.62,196.61,1.523]
[1736330003278,0.84946919,196.73,196.62,6.4838]
[1736330003615,22.22,196.72,196.62,7.24642378]
[1736330004175,2.22,196.72,196.62,7.24642378]
[1736330004484,22.22,196.72,196.62,7.24642378]
[1736330004694,20.0,196.72,196.62,7.24642378]
[1736330004895,20.0,196.7,196.62,7.24642378]
[1736330005405,2.22,196.71,196.62,7.24642378]
[1736330007915,2.22,196.7,196.65,1.5384]
[1736330008113,2.22,196.69,196.66,0.76244766]
[1736330008284,2.22,196.68,196.66,0.76244766]
[1736330010427,2.22,196.68,196.65,1.5384]
[1736330015387,0.84946919,196.77,196.65,1.5384]
[1736330015596,2.22,196.76,196.65,1.5384]
[1736330016292,20.0,196.75,196.65,1.5384]
[1736330017313,2.22,196.76,196.65,1.5384]
[1736330018811,20.0,196.78,196.65,1.5384]
[1736330018991,2.24,196.77,196.65,1.5384]
[1736330020216,20.0,196.78,196.65,1.5384]
[1736330020427,2.22,196.76,196.66,0.76253431]
[1736330020590,22.22,196.76,196.65,1.5384]
[1736330021020,20.0,196.72,196.65,1.5384]
[1736330023304,0.84946919,196.77,196.65,1.5384]
[1736330023490,2.22,196.76,196.65,1.5384]
[1736330024513,2.24,196.75,196.66,0.76248683]
[1736330026011,20.0,196.78,196.66,0.76248683]
[1736330026211,2.24,196.77,196.68,6.3812]
[1736330026395,2.24,196.77,196.69,0.76231719]
[1736330027000,2.24,196.77,196.7,1.6346]
[1736330027617,20.0,196.8,196.71,0.76231715]
[1736330027618,2.24,196.76,196.71,0.76231715]
[1736330028219,2.24,196.75,196.71,0.76231715]
[1736330031209,20.0,196.8,196.71,0.76231715]
[1736330031398,2.24,196.79,196.71,0.76231715]
[1736330032822,2.24,196.79,196.72,6.6332]
[1736330036905,20.0,196.8,196.72,6.6332]
[1736330037097,2.24,196.79,196.72,6.6332]
[1736330037302,20.0,196.8,196.72,6.6332]
[1736330037517,2.24,196.79,196.72,6.6332]
[1736330048933,2.24,196.78,196.72,6.6332]
[1736330053036,2.24,196.77,196.72,6.6332]
[1736330056151,20.0,196.81,196.72,6.6332]
[1736330056338,2.22,196.8,196.72,6.6332]
[1736330062249,20.0,196.81,196.72,6.6332]
[1736330062448,2.22,196.8,196.72,6.6332]
[1736330066547,20.0,196.76,196.72,6.6332]
[1736330070835,20.0,196.77,196.72,6.6332]
[1736330071854,2.22,196.8,196.72,6.6332]
[1736330082450,2.22,196.8,196.73,2.26803758]
[1736330083167,2.2,196.79,196.73,2.26803758]
[1736330083767,43.776884,196.83,196.73,2.26803758]
[1736330083969,2.2,196.82,196.73,2.26803758]
[1736330085770,2.2,196.82,196.73,1.5058]
[1736330086148,20.0,196.79,196.73,1.5058]
[1736330087483,4.66878515,196.82,196.73,1.5058]
[1736330087769,20.0,196.79,196.73,2.26795294]
[1736330094074,2.2,196.78,196.73,2.26795294]
[1736330097976,4.66878515,196.82,196.73,2.26795294]
[1736330098176,20.0,196.79,196.73,2.26795294]
[1736330100575,20.0,196.79,196.73,1.5058]
[1736330114794,2.18,196.81,196.73,1.5058]
[1736330114999,6.75520396,196.82,196.73,1.5058]
[1736330115000,4.66878515,196.82,196.73,1.5058]
[1736330115182,2.18,196.8,196.73,1.5058]
[1736330120788,2.18,196.79,196.74,0.76222978]
[1736330129332,2.18,196.78,196.74,0.76222978]
[1736330132709,2.18,196.78,196.73,1.5058]
[1736330133115,2.18,196.78,196.68,6.5951]
[1736330133346,2.18,196.78,196.68,8.1788]
[1736330135032,2.18,196.78,196.69,0.76237392]
[1736330141341,20.0,196.82,196.69,0.76237392]
[1736330141537,2.18,196.81,196.7,1.506]
[1736330141720,2.18,196.81,196.71,0.76223258]
[1736330141921,20.0,196.82,196.71,0.76223258]
[1736330142121,2.18,196.81,196.71,0.76223258]
[1736330146447,22.18,196.81,196.71,0.76223258]
[1736330147723,2.18,196.81,196.71,0.76223258]
[1736330148240,20.0,196.77,196.7,1.506]
[1736330153245,20.0,196.73,196.7,1.506]
[1736330153451,2.18,196.72,196.7,1.506]
[1736330154361,2.18,196.71,196.7,1.506]
[1736330156567,2.18,196.71,196.68,6.5951]
[1736330157072,2.18,196.71,196.65,1.5249]
[1736330164665,2.18,196.71,196.6,1.5469]
[1736330167001,2.18,196.71,196.6,2.30963612]
[1736330167581,2.18,196.71,196.6,12.17213019]
[1736330168801,2.18,196.71,196.6,2.30963612]
[1736330169809,2.18,196.71,196.6,1.5469]
[1736330174286,20.0,196.67,196.6,1.5469]
[1736330176711,2.18,196.66,196.61,0.76272137]
[1736330176918,2.18,196.65,196.6,12.17205602]
[1736330177210,2.18,196.64,196.6,12.17205602]
[1736330178986,2.18,196.64,196.6,2.30956195]
[1736330180918,2.18,196.64,196.6,1.5469]
[1736330181790,20.0,196.72,196.6,1.5469]
[1736330181992,2.18,196.71,196.6,1.5469]
[1736330187321,20.0,196.67,196.6,1.5469]
[1736330191411,20.0,196.72,196.6,1.5469]
[1736330191717,2.18,196.71,196.6,2.30965555]
[1736330193315,2.18,196.71,196.6,1.5469]
[1736330194202,20.0,196.67,196.6,1.5469]
[1736330195889,23.776884,196.66,196.58,6.2893]
[1736330196191,20.0,196.63,196.55,1.5276]
[1736330196407,2.18,196.62,196.55,1.5276]
[1736330197603,20.0,196.58,196.52,6.4092]
[1736330198323,20.0,196.58,196.5,1.5285]
[1736330199607,20.0,196.58,196.5,11.39099407]
[1736330199818,2.18,196.57,196.5,11.39099407]
[1736330201318,2.18,196.57,196.5,1.5285]
[1736330210713,2.18,196.56,196.5,1.5285]
[1736330214331,20.0,196.58,196.5,1.5285]
[1736330214520,2.18,196.55,196.5,1.5285]
[1736330217938,2.18,196.55,196.48,23.776884]
[1736330219431,2.18,196.55,196.47,6.211]
[1736330220724,2.18,196.55,196.47,6.97420469]
[1736330221141,2.18,196.55,196.47,16.83669876]
[1736330222440,2.18,196.54,196.47,6.97420469]
[1736330222614,2.18,196.54,196.47,16.83669876]
[1736330223026,2.18,196.54,196.47,6.97420469]
[1736330223952,2.18,196.54,196.47,6.211]
[1736330224118,2.18,196.53,196.47,6.211]
[1736330229018,2.18,196.53,196.48,23.776884]
[1736330229447,20.0,196.58,196.48,23.776884]
[1736330229755,20.0,196.58,196.49,2.34366672]
[1736330230050,2.18,196.57,196.49,2.34366672]
[1736330230236,2.18,196.56,196.49,1.5805]
[1736330230442,2.18,196.55,196.49,1.5805]
[1736330230627,2.18,196.54,196.5,23.776884]
[1736330231255,41.97187046,196.63,196.5,24.53997455]
[1736330231556,2.18,196.62,196.5,24.53997455]
[1736330231750,21.97187046,196.63,196.5,24.53997455]
[1736330232058,2.18,196.61,196.5,24.53997455]
[1736330233254,2.18,196.61,196.5,23.776884]
[1736330233859,40.381534,196.64,196.5,23.776884]
[1736330234023,2.18,196.6,196.5,23.776884]
[1736330236335,40.381534,196.64,196.5,23.776884]
[1736330236534,2.18,196.63,196.5,23.776884]
[1736330240553,2.18,196.63,196.51,6.0719]
[1736330248959,2.18,196.63,196.52,1.5629]
[1736330249139,22.18,196.63,196.52,1.5629]
[1736330249562,20.0,196.62,196.52,1.5629]
[1736330249764,2.18,196.61,196.52,1.5629]
[1736330251150,2.18,196.6,196.53,23.776884]
[1736330251355,2.18,196.6,196.54,8.1551]
[1736330251559,2.18,196.59,196.54,8.1551]
[1736330251756,30.29389206,196.67,196.54,8.1551]
[1736330251961,2.18,196.66,196.54,8.1551]
[1736330252150,20.0,196.64,196.54,8.1551]
[1736330253345,2.18,196.63,196.54,8.1551]
[1736330253547,2.18,196.62,196.54,8.1551]
[1736330267377,2.18,196.62,196.55,23.776884]
[1736330269277,2.18,196.62,196.54,8.1551]
[1736330269666,2.18,196.62,196.54,1.5113]
[1736330269984,2.18,196.62,196.5,1.5458]
[1736330270148,20.0,196.61,196.5,1.5458]
[1736330270354,20.0,196.59,196.5,1.5458]
[1736330270556,20.0,196.58,196.5,1.5458]
[1736330281684,2.18,196.57,196.5,1.5458]
[1736330281883,2.18,196.56,196.5,1.5458]
[1736330282088,2.18,196.55,196.5,1.5458]
[1736330288771,2.18,196.54,196.5,1.5458]
[1736330289090,2.18,196.53,196.51,23.776884]
[1736330289268,0.5134,196.52,196.51,23.776884]
[1736330289674,20.0,196.63,196.51,23.776884]
[1736330289994,2.18,196.62,196.51,23.776884]
[1736330290494,2.18,196.62,196.51,33.63937807]
[1736330290992,2.18,196.61,196.53,25.282684]
[1736330291573,2.18,196.6,196.53,25.282684]
[1736330292470,2.18,196.6,196.53,1.5058]
[1736330300311,2.18,196.59,196.53,1.5058]
[1736330301713,2.18,196.59,196.45,1.03721442]
[1736330301882,2.18,196.59,196.45,10.13654589]
[1736330302705,2.18,196.59,196.46,34.40264247]
[1736330302907,2.18,196.59,196.48,23.776884]
[1736330303208,2.18,196.59,196.49,6.2993]
[1736330314612,2.18,196.59,196.47,1.5889]
[1736330315017,20.0,196.57,196.45,0.27405182]
[1736330315528,20.0,196.55,196.45,0.27405182]
[1736330315883,21.86670117,196.55,196.45,0.27405182]
[1736330318505,20.0,196.53,196.45,0.27405182]
[1736330318699,22.18,196.52,196.45,0.27405182]
[1736330319931,20.0,196.53,196.45,0.27405182]
[1736330320235,2.18,196.52,196.45,0.27405182]
[1736330322715,20.0,196.54,196.45,0.27405182]
[1736330322921,2.18,196.53,196.45,0.27405182]
[1736330323232,2.18,196.53,196.32,7.8245]
[1736330323233,20.0,196.45,196.32,7.8245]
[1736330323437,2.2,196.44,196.32,7.8245]
[1736330323732,2.2,196.44,196.33,23.776884]
[1736330324419,2.2,196.43,196.33,23.776884]
[1736330324603,2.2,196.43,196.32,7.8245]
[1736330325021,2.2,196.43,196.33,23.776884]
[1736330325312,22.2,196.43,196.27,8.0348]
[1736330325743,24.06608565,196.43,196.27,8.0348]
[1736330325949,32.10088565,196.43,196.28,33.63937807]
[1736330326139,24.06608565,196.43,196.28,23.776884]
[1736330326454,24.06608565,196.43,196.28,9.86249407]
[1736330326636,24.06608565,196.43,196.29,23.776884]
[1736330327156,24.06608565,196.43,196.27,8.0348]
[1736330327329,20.0,196.42,196.27,8.0348]
[1736330327533,20.0,196.42,196.28,23.776884]
[1736330328725,20.0,196.42,196.28,33.63937807]
[1736330328954,2.22,196.41,196.29,9.86249407]
[1736330329123,1.86608565,196.43,196.28,23.776884]
[1736330329450,2.22,196.42,196.28,23.776884]
[1736330329759,2.22,196.41,196.28,33.63937807]
[1736330331754,2.22,196.41,196.29,9.86249407]
[1736330333048,20.0,196.46,196.29,10.62640654]
[1736330333231,22.22,196.45,196.31,23.776884]
[1736330333426,22.22,196.45,196.29,23.776884]
[1736330333744,22.22,196.45,196.31,23.776884]
[1736330333929,22.22,196.45,196.29,9.86249407]
[1736330334136,22.22,196.45,196.3,23.776884]
[1736330334733,22.22,196.45,196.31,9.86249407]
[1736330335133,2.22,196.45,196.3,9.86249407]
[1736330338937,2.22,196.45,196.29,33.63937807]
[1736330339356,4.08608565,196.45,196.29,33.63937807]
[1736330340050,1.5991,196.43,196.27,8.0348]
[1736330340427,3.46518565,196.43,196.27,8.0348]
[1736330341135,3.46518565,196.43,196.28,23.776884]
[1736330341459,3.46518565,196.43,196.27,8.0348]
[1736330342025,3.46518565,196.43,196.28,23.776884]
[1736330342224,20.0,196.42,196.28,23.776884]
[1736330342837,20.0,196.42,196.28,33.63937807]
[1736330343847,20.0,196.42,196.3,23.776884]
[1736330344433,20.0,196.42,196.29,9.86249407]
[1736330344434,20.0,196.42,196.28,33.63937807]
[1736330344761,20.0,196.4,196.28,33.63937807]
[1736330347336,20.0,196.4,196.28,23.776884]
[1736330347846,26.4189,196.4,196.28,23.776884]
[1736330348639,26.4189,196.4,196.27,8.0348]
[1736330348970,26.4189,196.4,196.28,23.776884]
[1736330351577,26.4189,196.4,196.25,20.0]
[1736330352073,26.4189,196.4,196.26,23.776884]